Cogmind - Beta 11 @@@ ROGUE MODE // 2022.03.25 @ 17:49:46 Player: spruce Result: Destroyed by G-67 Veteran with Plasma Rifle Performance ------------- Evolutions (6) 3000 Regions Visited (13) 2600 Robots Destroyed (82) 410 Value Destroyed (2902) 2902 Prototype IDs (14) 280 Alien Tech Used (0) 0 Bonus (2427) 2427 TOTAL SCORE: 11619 Bonus ------- Entered DSFs 1000 Met Warlord at Base 500 MAIN.C Attacked Warlord 500 Warlord Defense Kill 556 Friendly Fire -129 Cogmind --------- Core Integrity 0/1150 Matter 60/300 Energy 99/100 System Corruption 7% Temperature Cool (0) Movement Core (50) Location -4/Warlord Parts ------- > --- POWER (2) -------- (None) > --- PROPULSION (4) --- Enhanced Biometal Leg > --- UTILITY (9) ------ Makeshift Salvage Targeting Computer Advanced Targeting Computer Experimental Core Analyzer > --- WEAPON (4) ------- (None) > --- INVENTORY (5) ---- Vortex Chain Reactor Experimental Sensor Array Thermal Barrier RU-N14's Throwing Claymores v3 (9) Peak State ------------ > --- POWER ------------ Vortex Chain Reactor > --- PROPULSION ------- Armored Medium Treads Armored Medium Treads Cooled Antigrav System Cooled Antigrav System > --- UTILITY ---------- Long-range Terrain Scanner Makeshift Salvage Targeting Computer Makeshift Salvage Targeting Computer Advanced Targeting Computer Experimental Core Analyzer Improved Light Armor Plating Improved Light Armor Plating Improved Light Armor Plating Thermal Barrier > --- WEAPON ----------- Variable Charge Gun RU-N14's Throwing Claymores v3 RU-N14's Throwing Claymores v3 RU-N14's Throwing Claymores v3 > --- INVENTORY -------- Advanced Cooling System Experimental Sensor Array RU-N14's Throwing Claymores v3 RU-N14's Throwing Claymores v3 RU-N14's Throwing Claymores v3 [Rating: 134] Favorites ----------- Power Improved Deuterium Engine Engine Improved Deuterium Engine Power Core Light Nuclear Core Reactor Vortex Chain Reactor Propulsion Armored Medium Treads Treads Armored Medium Treads Leg Enhanced Biometal Leg Wheel Compact Wheel Hover Unit Cooled Antigrav System Flight Unit VTOL Module Utility Advanced Targeting Computer Device Long-range Terrain Scanner Storage Large Storage Unit Processor Advanced Targeting Computer Hackware Authchip [Device] Protection Improved Light Armor Plating Weapon Advanced Beam Rifle Energy Gun Advanced Beam Rifle Energy Cannon Advanced Plasma Cannon Ballistic Gun Minigun Special Weapon RU-N14's Throwing Claymores v3 Build | -11 -10 -9 -9 -8 -7 -7 -6 -5 -5 -4 -4 -4 -4 ------- Run | Scr Mat Mat Min Mat Fac DSF Fac Fac DSF Fac Upp Upp War Slots Evolved 12 | . . 2 . 2 2 . 2 2 . 2 . . . Power 1 | . . . . . . . . . . 1 . . . Propulsion 2 | . . . . . 1 . . 1 . . . . . Utility 7 | . . 2 . 1 1 . 2 1 . . . . . Weapon 2 | . . . . 1 . . . . . 1 . . . Parts Attached 142 | 6 1 9 4 7 6 12 31 2 13 12 8 5 26 Power 13 | 1 . 2 . . . 1 3 . 2 2 . . 2 Engine 10 | 1 . 1 . . . 1 3 . 2 2 . . . Core 2 | . . 1 . . . . . . . . . . 1 Reactor 1 | . . . . . . . . . . . . . 1 Propulsion 29 | 2 . . . . 3 . 6 . 5 4 . 1 8 Treads 14 | . . . . . 3 . 6 . . 4 . . 1 Leg 9 | . . . . . . . . . 4 . . . 5 Wheel 3 | 2 . . . . . . . . 1 . . . . Hover 2 | . . . . . . . . . . . . . 2 Flight 1 | . . . . . . . . . . . . 1 . Utility 66 | 1 1 5 4 2 3 9 14 1 4 5 5 3 9 Device 31 | . . 2 2 2 1 4 4 1 3 4 4 2 2 Storage 3 | 1 1 . . . . . 1 . . . . . . Processor 12 | . . . . . . . 5 . 1 1 . 1 4 Hackware 6 | . . . . . . 5 . . . . 1 . . Protection 14 | . . 3 2 . 2 . 4 . . . . . 3 Artifact . | . . . . . . . . . . . . . . Weapon 34 | 2 . 2 . 5 . 2 8 1 2 1 3 1 7 Energy Gun 19 | 2 . 2 . 3 . . 6 1 2 1 . 1 1 Energy Cannon 3 | . . . . . . . . . . . 3 . . Ballistic Gun 6 | . . . . 2 . 2 2 . . . . . . Ballistic Cannon . | . . . . . . . . . . . . . . Launcher . | . . . . . . . . . . . . . . Special Weapon 6 | . . . . . . . . . . . . . 6 Impact Weapon . | . . . . . . . . . . . . . . Slashing Weapon . | . . . . . . . . . . . . . . Piercing Weapon . | . . . . . . . . . . . . . . Special Melee Weapon . | . . . . . . . . . . . . . . Unidentified Prototypes 14 | . . 2 2 2 . . 1 . . . . . 7 Corrupted Parts 1 | . . . . . . . . . 1 . . . . System Corruption 4 | . . . . . . . . . 4 . . . . Parts Lost 54 | . . . 1 . . . 22 . 17 . 8 2 4 Power 5 | . . . . . . . 1 . 2 . 2 . . Propulsion 12 | . . . . . . . 5 . 6 . . 1 . Utility 23 | . . . 1 . . . 9 . 4 . 6 1 2 Weapon 14 | . . . . . . . 7 . 5 . . . 2 Highest Loss Streak 10 | . . . 1 . . . 10 . 9 . 8 1 3 To Critical Strikes 3 | . . . . . . . . . 2 . . 1 . Average Slot Usage (%) 80 | . 85 86 99 99 100 98 87 81 68 79 61 24 69 Engine 4 | . 14 . 11 9 7 7 5 5 3 10 5 . . Treads 12 | . . . . . 22 23 18 17 8 15 15 13 11 Leg 1 | . . . . . . . . . 7 3 . . 4 Wheel 4 | . 28 22 22 18 . . . . . . . . . Device 11 | . . 7 11 17 22 28 8 3 7 19 15 6 6 Storage 5 | . 14 11 11 9 7 7 6 5 5 5 3 . . Processor 12 | . . . . . . . 18 23 18 20 12 1 19 Protection 9 | . . 13 21 18 15 7 8 11 2 . . . 10 Energy Gun 9 | . 28 20 22 16 7 7 13 11 10 4 3 . 2 Ballistic Gun 3 | . . . . 10 15 14 4 . . . . . . Special Weapon 2 | . . . . . . . . . . . . . 9 Naked Turns . | . . . . . . . . . . . . . . Heaviest Build 82 | 12 32 40 44 51 54 54 62 71 78 61 79 7 82 Greatest Support 129 | 26 26 26 26 26 66 66 66 62 62 129 129 4 120 Greatest Overweight (x) 3 | 1 1 1 1 1 2 . 1 1 2 . . 2 3 Average Overweight (x) . | . . . 1 1 . . . . . . . . . Largest Inventory Capacity 15 | 8 15 15 15 15 15 15 15 15 15 15 15 5 5 Average Capacity 11 | 6 14 15 15 15 15 15 15 15 15 15 11 5 5 Most Carried 15 | 2 8 15 15 15 15 15 15 13 15 13 12 5 5 Average Carried 10 | 1 5 13 14 14 14 14 13 12 12 9 8 4 4 Final Capacity 15 | 8 15 15 15 15 15 15 15 15 15 15 5 5 5 Final Carried 15 | 2 8 15 15 15 15 15 13 12 14 13 5 5 5 Class Distribution -------------------- 57% | Mutant 16% | Tank 12% | Scavenger-Mutant 8% | Gunner 3% | Scavenger-Gunner Dominant Class ---------------- Mutant | -10/Materials Mutant | -9/Materials Mutant | -9/Mines Tank | -8/Materials Mutant | -7/Factory Tank | -7/DSF Gunner | -6/Factory Scavenger-Mutant | -5/Factory Scavenger-Mutant | -5/DSF Scavenger-Mutant | -4/Factory Mutant | -4/Upper Caves Mutant | -4/Upper Caves Mutant | -4/Warlord Resources | -11 -10 -9 -9 -8 -7 -7 -6 -5 -5 -4 -4 -4 -4 ----------- Run | Scr Mat Mat Min Mat Fac DSF Fac Fac DSF Fac Upp Upp War Matter Collected 1706 | 221 57 90 10 204 . 108 684 . 110 . 147 75 . Remotely . | . . . . . . . . . . . . . . Salvage Created 3693 | . 77 453 129 596 . 136 1663 . 257 . 200 42 140 Parts 202 | . 4 36 3 35 . 5 95 . 13 . 3 4 4 Haulers Intercepted 5 | . 1 1 . 3 . . . . . . . . . Recyclers Shooed 3 | . . . . . . . 3 . . . . . . Parts Field Recycled . | . . . . . . . . . . . . . . Retrieved Matter . | . . . . . . . . . . . . . . Parts Self-Destructed 67 | . . . . . . . . . . . 3 7 57 Prevented 23 | . . . . . . . . . . . . . 23 Kills | -11 -10 -9 -9 -8 -7 -7 -6 -5 -5 -4 -4 -4 -4 ------- Run | Scr Mat Mat Min Mat Fac DSF Fac Fac DSF Fac Upp Upp War Combat Hostiles Destroyed 60 | . 1 12 3 10 . 2 19 . 3 . 4 2 4 Melee 1 | . . . . . . . . . . . . . 1 Guns 50 | . 1 12 1 10 . 2 18 . 3 . 1 2 . Cannons 3 | . . . . . . . . . . . 2 . 1 AOE 2 | . . . . . . . . . . . . . 2 Classes Destroyed 16 | . 2 4 . 2 . 2 3 . . . 1 . 2 Worker 11 | . . . . 1 . . 10 . . . . . . Builder 1 | . . 1 . . . . . . . . . . . Hauler 5 | . 1 1 . 3 . . . . . . . . . Recycler 3 | . . . . 1 . . 2 . . . . . . Watcher 2 | . . . . . . . 2 . . . . . . Swarmer 16 | . . 6 . 4 . . 3 . . . 1 2 . Saboteur 1 | . . . . . . . . . . . . . 1 Grunt 17 | . 1 3 3 2 . . 7 . . . . . 1 Brawler 2 | . . 1 . . . . 1 . . . . . . Duelist 1 | . . . . . . . . . . . 1 . . Sentry 7 | . . 2 . 4 . . 1 . . . . . . Specialist 5 | . . . . . . . 2 . 3 . . . . Hunter 4 | . . . . . . 1 3 . . . . . . Programmer 4 | . . . . . . . 1 . . . 2 . 1 Heavy 2 | . . . . . . 1 1 . . . . . . Striker 1 | . . . . . . . . . . . . . 1 Best Kill Streak 8 | . 1 6 3 5 . 1 8 . 2 . 2 2 3 Combat Bots Only 6 | . 1 6 3 5 . 1 6 . 2 . 2 2 3 Max Kills in Single Turn 4 | . 1 2 1 2 . 1 4 . 1 . 1 1 1 Gunslinging 1 | . . 1 . . . . 1 . . . . . . Exploded 1 | . . . . . . . . . . . . . 1 Melee 1 | . . . . . . . . . . . . . 1 Uniques/NPCs Destroyed . | . . . . . . . . . . . . . . Combat | -11 -10 -9 -9 -8 -7 -7 -6 -5 -5 -4 -4 -4 -4 -------- Run | Scr Mat Mat Min Mat Fac DSF Fac Fac DSF Fac Upp Upp War Damage Taken 12033 | . 34 305 85 311 . 367 3223 . 2997 . 1271 609 2831 Core 2492 | . 12 29 . 13 . 37 540 . 697 . 110 101 953 Absorbed by Shields 336 | . . . . 33 . 68 74 . 102 . 59 . . Redirected to Shielding 38 | . . . . . . . 35 . 3 . . . . Core Remaining (%) 77 | 100 95 . 92 97 . 94 36 . 30 . . . . Volleys Fired 209 | . 11 30 13 34 . 12 74 . 10 . 9 6 10 Largest 3 | . 2 2 2 3 . 3 3 . 3 . 3 1 1 Hottest 284 | . 100 122 122 183 . 106 202 . 196 . 284 75 225 Shots Fired 497 | . 22 57 26 100 . 36 199 . 24 . 18 5 10 Gun 474 | . 22 57 26 100 . 36 199 . 24 . 2 5 3 Cannon 16 | . . . . . . . . . . . 16 . . Launcher . | . . . . . . . . . . . . . . Special 7 | . . . . . . . . . . . . . 7 Kinetic 111 | . . . . 30 . 24 57 . . . . . . Thermal 358 | . 22 57 26 66 . 12 133 . 16 . 18 5 3 Explosive 7 | . . . . . . . . . . . . . 7 Electromagnetic 21 | . . . . 4 . . 9 . 8 . . . . Robot Hit Streak 29 | . 6 5 5 8 . 6 19 . 20 . 29 2 2 Robot Miss Streak 6 | . 3 3 3 6 . 2 3 . 2 . 1 1 1 Penetration Max 1 | . . . . . . . 1 . . . . . . Secondary Targets 11 | . . 4 . 2 . . 5 . . . . . . Max Gunslinging Chain 1 | . . 1 . 1 . . 1 . . . . . . Shots Hit Robots 315 | . 14 34 14 43 . 22 148 . 21 . 14 3 2 Core Hits 157 | . 5 14 2 22 . 9 67 . 13 . 7 2 16 Critical Kills 2 | . . . . . . . 1 . . . 1 . . Critical Parts Destroyed 2 | . . . . . . . 2 . . . . . . Critical Strikes 22 | . . 6 2 2 . 1 9 . . . 1 . 1 Burn 17 | . . 6 2 2 . 1 6 . . . . . . Meltdown 1 | . . . . . . . . . . . 1 . . Destroy 3 | . . . . . . . 3 . . . . . . Sever 1 | . . . . . . . . . . . . . 1 Melee Attacks . | . . . . . . . . . . . . . . Impact . | . . . . . . . . . . . . . . Slashing . | . . . . . . . . . . . . . . Piercing . | . . . . . . . . . . . . . . Sneak Attacks . | . . . . . . . . . . . . . . Combat Hostiles . | . . . . . . . . . . . . . . Follow-up Attacks . | . . . . . . . . . . . . . . Damage Inflicted 8245 | . 175 660 280 842 . 386 3518 . 411 . 552 76 1345 Guns 5923 | . 175 660 280 842 . 386 3029 . 411 . 64 76 . Cannons 483 | . . . . . . . . . . . 483 . . Explosions 1751 | . . . . . . . 489 . . . . . 1262 Melee . | . . . . . . . . . . . . . . Ramming 5 | . . . . . . . . . . . 5 . . Kinetic 1487 | . . . . 276 . 300 911 . . . . . . Thermal 4740 | . 175 660 280 520 . 86 2097 . 299 . 547 76 . Explosive 1262 | . . . . . . . . . . . . . 1262 Electromagnetic 668 | . . . . 46 . . 510 . 112 . . . . Impact . | . . . . . . . . . . . . . . Slashing 83 | . . . . . . . . . . . . . 83 Piercing . | . . . . . . . . . . . . . . Highest Corruption 27 | . 3 . . . . . 4 . 4 . 27 27 27 Average Corruption 9 | . 2 . . . . . 3 . 4 . 12 27 7 Corruption Purged . | . . . . . . . . . . . . . . Corruption Blocked 8 | . . . . . . . . . . . . . 8 Effects 40 | . 1 . . . . . 10 . 5 . 11 10 3 Message Errors 5 | . . . . . . . 1 . . . 1 2 1 Matter Fused 7 | . 1 . . . . . 1 . 2 . 3 . . Heat Flow Errors 8 | . . . . . . . 2 . . . 2 3 1 Energy Discharges 4 | . . . . . . . 1 . 1 . 1 1 . Parts Rejected 2 | . . . . . . . . . . . 1 . 1 Data Loss (minor) 5 | . . . . . . . 1 . 1 . 2 1 . Data Loss (major) 1 | . . . . . . . . . . . 1 . . Misfires 1 | . . . . . . . 1 . . . . . . Alerts 2 | . . . . . . . . . 1 . . 1 . Misdirections 1 | . . . . . . . . . . . . 1 . Weapon Failures 4 | . . . . . . . 3 . . . . 1 . Overload Shots 3 | . . . . . . . . . . . . . 3 Overflow Damage 91 | . . . . . . . 50 . . . 31 . 10 Projectiles 31 | . . . . . . . . . . . 31 . . Explosions 60 | . . . . . . . 50 . . . . . 10 Melee . | . . . . . . . . . . . . . . Knockbacks . | . . . . . . . . . . . . . . Impact . | . . . . . . . . . . . . . . Kinetic . | . . . . . . . . . . . . . . Secondary . | . . . . . . . . . . . . . . Self-Inflicted Damage 2 | . . . . . . . . . . . 2 . . Shots . | . . . . . . . . . . . . . . Rammed 1 | . . . . . . . . . . . 1 . . Targets Rammed 1 | . . . . . . . . . . . 1 . . Kicked . | . . . . . . . . . . . . . . Crushed . | . . . . . . . . . . . . . . Highest Temperature 624 | . 212 377 75 139 . . 624 . 146 . 116 174 492 Average Temperature 106 | . 99 145 33 28 . . 114 . 54 . 45 72 205 Received Heat Transfer 1460 | . 18 54 48 96 . 57 501 . 319 . 157 39 171 Effects 16 | . . 2 . . . . 13 . . . . . 1 Shutdowns 4 | . . 1 . . . . 2 . . . . . 1 Energy Bleed 1 | . . . . . . . 1 . . . . . . Interference 4 | . . 1 . . . . 3 . . . . . . Matter Decay 1 | . . . . . . . 1 . . . . . . Damage (minor) 1 | . . . . . . . 1 . . . . . . Damage (major) 4 | . . . . . . . 4 . . . . . . Damage (core) 1 | . . . . . . . 1 . . . . . . Siege Activations . | . . . . . . . . . . . . . . Robots Corrupted . | . . . . . . . . . . . . . . Combat Hostiles . | . . . . . . . . . . . . . . Parts Fried 1 | . . . . . . . 1 . . . . . . Impact Corruptions . | . . . . . . . . . . . . . . Robots Melted 4 | . . . 2 . . . 1 . . . 1 . . Combat Hostiles 4 | . . . 2 . . . 1 . . . 1 . . Parts Melted 29 | . . 2 2 3 . . 15 . . . 7 . . Heat Transferred 9660 | . 518 1665 666 1110 . 259 3985 . 622 . 724 111 . Parts Sabotaged 7 | . . . . . . . . . . . . . 7 Parts Stolen . | . . . . . . . . . . . . . . Parts Stripped . | . . . . . . . . . . . . . . Power Chain Reactions 1 | . . . . . . . 1 . . . . . . Missiles Intercepted . | . . . . . . . . . . . . . . Alert | -11 -10 -9 -9 -8 -7 -7 -6 -5 -5 -4 -4 -4 -4 ------- Run | Scr Mat Mat Min Mat Fac DSF Fac Fac DSF Fac Upp Upp War Peak Influence 387 | . 39 363 201 362 93 98 387 155 188 57 . . . Initial 150 | . . 16 141 78 93 65 51 150 108 43 . . . Average 143 | . 15 197 176 237 93 90 174 152 133 49 . . . Maximum Alert Level 1 | . . 1 1 1 . . 1 . . . . . . Low Security (%) 71 | 100 100 44 45 27 100 100 56 100 100 100 . . . Level 1 28 | . . 55 54 72 . . 43 . . . . . . Level 2 . | . . . . . . . . . . . . . . Level 3 . | . . . . . . . . . . . . . . Level 4 . | . . . . . . . . . . . . . . Level 5 . | . . . . . . . . . . . . . . High Security . | . . . . . . . . . . . . . . Max Security . | . . . . . . . . . . . . . . Squads Dispatched 10 | . . . . . . 1 4 . 3 2 . . . Investigation 1 | . . . . . . . . . . 1 . . . Extermination 2 | . . . . . . . 1 . . 1 . . . Reinforcement 7 | . . . . . . 1 3 . 3 . . . . Assault . | . . . . . . . . . . . . . . Garrison . | . . . . . . . . . . . . . . Intercept . | . . . . . . . . . . . . . . Searches Triggered . | . . . . . . . . . . . . . . Construction Impeded . | . . . . . . . . . . . . . . Haulers Reinforced 1 | . . . . . . . 1 . . . . . . Active Scanning Responses . | . . . . . . . . . . . . . . Cargo Convoy Interrupts . | . . . . . . . . . . . . . . Stealth | -11 -10 -9 -9 -8 -7 -7 -6 -5 -5 -4 -4 -4 -4 --------- Run | Scr Mat Mat Min Mat Fac DSF Fac Fac DSF Fac Upp Upp War Distress Signals 5 | . . 2 . . . . 2 . . 1 . . . Communications Jammed . | . . . . . . . . . . . . . . Distress Signals . | . . . . . . . . . . . . . . Times Spotted 151 | . 1 15 3 12 . 10 27 . 20 1 11 18 33 Peak Tracking Total 17 | . 1 6 3 4 . 8 6 . 12 3 9 7 17 Tactical Retreats 14 | . . . . . . . 2 . 4 . 3 3 2 Traps | -11 -10 -9 -9 -8 -7 -7 -6 -5 -5 -4 -4 -4 -4 ------- Run | Scr Mat Mat Min Mat Fac DSF Fac Fac DSF Fac Upp Upp War Traps Triggered 6 | . 2 . . . . . 1 . 2 1 . . . Indirectly . | . . . . . . . . . . . . . . Trap Hack Attempts . | . . . . . . . . . . . . . . Triggered . | . . . . . . . . . . . . . . Disarmed . | . . . . . . . . . . . . . . Reprogrammed . | . . . . . . . . . . . . . . Reused . | . . . . . . . . . . . . . . Traps Extracted . | . . . . . . . . . . . . . . Installed . | . . . . . . . . . . . . . . Triggered 26 | . . . . . . . . . . . . . 26 Machines | -11 -10 -9 -9 -8 -7 -7 -6 -5 -5 -4 -4 -4 -4 ---------- Run | Scr Mat Mat Min Mat Fac DSF Fac Fac DSF Fac Upp Upp War Machines Disabled 19 | . . 4 . . . . 11 . 1 . . . 3 Max in Single Turn 6 | . . 2 . . . . 6 . 1 . . . 2 Machines Sabotaged . | . . . . . . . . . . . . . . Garrisons Compromised . | . . . . . . . . . . . . . . Overloaded Fab Kills . | . . . . . . . . . . . . . . Hacking | -11 -10 -9 -9 -8 -7 -7 -6 -5 -5 -4 -4 -4 -4 --------- Run | Scr Mat Mat Min Mat Fac DSF Fac Fac DSF Fac Upp Upp War Machines Accessed 16 | . 3 . 1 . 2 . 2 1 . 3 . . 4 Terminals 9 | . 3 . . . 1 . 1 1 . 3 . . . Fabricators 1 | . . . . . 1 . . . . . . . . Repair Stations 1 | . . . . . . . 1 . . . . . . Recycling Units . | . . . . . . . . . . . . . . Scanalyzers . | . . . . . . . . . . . . . . Garrison Access . | . . . . . . . . . . . . . . Total Hacks 33 | . 6 . 1 . 4 . 5 1 . 4 . . 12 Successful 23 | . 3 . 1 . 2 . 2 1 . 2 . . 12 Failed 10 | . 3 . . . 2 . 3 . . 2 . . . Catastrophic . | . . . . . . . . . . . . . . Database Lockouts . | . . . . . . . . . . . . . . Manual 3 | . . . . . . . . . . 3 . . . Terminals 16 | . 6 . . . 2 . 3 1 . 4 . . . Fabricators 2 | . . . . . 2 . . . . . . . . Repair Stations 2 | . . . . . . . 2 . . . . . . Recycling Units . | . . . . . . . . . . . . . . Scanalyzers . | . . . . . . . . . . . . . . Garrison Access . | . . . . . . . . . . . . . . Terminal Hacks 20 | . 3 . 1 . 1 . 1 1 . 1 . . 12 Record 10 | . . . . . . . . . . . . . 10 Robot Analysis 1 | . 1 . . . . . . . . . . . . Open Door 3 | . . . 1 . . . . . . . . . 2 Open DSF 4 | . . . . . 1 . 1 1 . 1 . . . Branch Access Points 1 | . 1 . . . . . . . . . . . . Hauler Manifests 1 | . 1 . . . . . . . . . . . . Fabricator Hacks 1 | . . . . . 1 . . . . . . . . Network Status 1 | . . . . . 1 . . . . . . . . Repair Station Hacks 1 | . . . . . . . 1 . . . . . . Scan Component 1 | . . . . . . . 1 . . . . . . Recycling Unit Hacks . | . . . . . . . . . . . . . . Scanalyzer . | . . . . . . . . . . . . . . Garrison Access Hacks . | . . . . . . . . . . . . . . Unauthorized Hacks 1 | . . . . . . . . . . 1 . . . Terminals 1 | . . . . . . . . . . 1 . . . Botnet 1 | . . . . . . . . . . 1 . . . Fabricators . | . . . . . . . . . . . . . . Repair Stations . | . . . . . . . . . . . . . . Recycling Units . | . . . . . . . . . . . . . . Scanalyzers . | . . . . . . . . . . . . . . Garrison Access . | . . . . . . . . . . . . . . Data Cores Recovered . | . . . . . . . . . . . . . . Used . | . . . . . . . . . . . . . . Hacking Detections 6 | . 1 . . . 1 . 2 . . 2 . . . Full Trace Events . | . . . . . . . . . . . . . . Feedback Events . | . . . . . . . . . . . . . . Feedback Blocked . | . . . . . . . . . . . . . . Robot Schematics Acquired . | . . . . . . . . . . . . . . Robots Built . | . . . . . . . . . . . . . . Authchips . | . . . . . . . . . . . . . . Time . | . . . . . . . . . . . . . . Total Robot Build Rating . | . . . . . . . . . . . . . . Part Schematics Acquired . | . . . . . . . . . . . . . . Parts Built . | . . . . . . . . . . . . . . Authchips . | . . . . . . . . . . . . . . Time . | . . . . . . . . . . . . . . Total Part Build Rating . | . . . . . . . . . . . . . . Parts Repaired . | . . . . . . . . . . . . . . Time . | . . . . . . . . . . . . . . Parts Recycled . | . . . . . . . . . . . . . . Recycled Matter . | . . . . . . . . . . . . . . Retrieved Matter . | . . . . . . . . . . . . . . Retrieved Components . | . . . . . . . . . . . . . . Parts Scanalyzed . | . . . . . . . . . . . . . . Part Schematics Acquired . | . . . . . . . . . . . . . . Parts Damaged . | . . . . . . . . . . . . . . Bothacking | -11 -10 -9 -9 -8 -7 -7 -6 -5 -5 -4 -4 -4 -4 ------------ Run | Scr Mat Mat Min Mat Fac DSF Fac Fac DSF Fac Upp Upp War Used RIF Installer . | . . . . . . . . . . . . . . Robots Hacked . | . . . . . . . . . . . . . . Non-combat . | . . . . . . . . . . . . . . Combat . | . . . . . . . . . . . . . . Robot Hacks Applied . | . . . . . . . . . . . . . . Relay Couplers Released . | . . . . . . . . . . . . . . Fabnet Peak Effective % . | . . . . . . . . . . . . . . Robots Rewired . | . . . . . . . . . . . . . . Allies Hacked . | . . . . . . . . . . . . . . Hacks Repelled . | . . . . . . . . . . . . . . Allies | -11 -10 -9 -9 -8 -7 -7 -6 -5 -5 -4 -4 -4 -4 -------- Run | Scr Mat Mat Min Mat Fac DSF Fac Fac DSF Fac Upp Upp War Total Allies . | . . . . . . . . . . . . . . Largest Group . | . . . . . . . . . . . . . . Highest-Rated Group . | . . . . . . . . . . . . . . Highest-Rated Ally . | . . . . . . . . . . . . . . Total Orders . | . . . . . . . . . . . . . . Ally Attacks 8 | . . . . . . 8 . . . . . . . Total Damage 21 | . . . . . . 21 . . . . . . . Kills . | . . . . . . . . . . . . . . Allies Corrupted . | . . . . . . . . . . . . . . Allies Melted . | . . . . . . . . . . . . . . Intel | -11 -10 -9 -9 -8 -7 -7 -6 -5 -5 -4 -4 -4 -4 ------- Run | Scr Mat Mat Min Mat Fac DSF Fac Fac DSF Fac Upp Upp War Robot Analysis Total 1 | . 1 . . . . . . . . . . . . Derelict Logs Recovered 3 | . . . 1 . . . . . . . 1 1 . Drone Launches 3 | . . . . . . 3 . . . . . . . Drone Recoveries 1 | . . . . . . 1 . . . . . . . Exploration | -11 -10 -9 -9 -8 -7 -7 -6 -5 -5 -4 -4 -4 -4 ------------- Run | Scr Mat Mat Min Mat Fac DSF Fac Fac DSF Fac Upp Upp War Turns Passed 5183 | 40 189 258 216 440 233 327 937 194 250 327 313 175 1284 Spaces Moved 3318 | 39 145 126 148 280 152 175 409 89 126 181 316 287 845 Core 1047 | 17 . . . . . . . . . . 232 279 519 Treads 1370 | . . . . . 145 175 409 89 15 181 84 . 272 Legs 140 | . . . . . . . . . 91 . . . 49 Wheels 748 | 22 145 126 148 280 7 . . . 20 . . . . Hover 5 | . . . . . . . . . . . . . 5 Flight 8 | . . . . . . . . . . . . 8 . Fastest Speed 50 | 50 90 90 105 105 120 145 145 161 90 166 50 50 50 Average Speed 124 | 75 102 104 105 105 143 145 148 217 139 168 80 51 142 Slowest Speed 270 | 100 105 105 105 105 145 145 225 241 270 170 166 150 250 Overloaded Moves . | . . . . . . . . . . . . . . Propulsion Burnouts . | . . . . . . . . . . . . . . Robots Hopped . | . . . . . . . . . . . . . . Cave-ins Triggered . | . . . . . . . . . . . . . . Exploration Rate (%) 36 | 3 30 18 34 22 4 95 12 3 91 6 57 53 86 Regions Visited 13 Branch Regions 4 Pre-discovered Areas 5 | . . . . . . . . . . . 1 . 4 Known Exits Taken 4 | . . . . . 1 . 1 1 . 1 . . . Unknown Exits Taken 7 | 1 1 1 1 1 . . . . . . 1 1 . Scrap Searched 5 | . . . 1 . . . . . . . . 4 . Spaces Dug 69 | . . . . . . . . . . . . . 69 Terrain Destroyed 132 | . . . . . . . . . . . 3 . 129 Melee . | . . . . . . . . . . . . . . Projectile 8 | . . . . . . . . . . . 3 . 5 AOE 124 | . . . . . . . . . . . . . 124 Terrain Rammed . | . . . . . . . . . . . . . . Walls Destroyed . | . . . . . . . . . . . . . . Machines Disabled . | . . . . . . . . . . . . . . Actions | -11 -10 -9 -9 -8 -7 -7 -6 -5 -5 -4 -4 -4 -4 --------- Run | Scr Mat Mat Min Mat Fac DSF Fac Fac DSF Fac Upp Upp War Total 3980 | 46 163 198 182 361 169 230 575 90 178 203 362 307 916 Wait 151 | . . 14 14 22 1 4 47 . 16 . 14 4 15 Move 3305 | 38 144 125 147 279 151 174 408 88 125 180 315 286 845 Hop . | . . . . . . . . . . . . . . Pick Up 81 | 2 6 12 2 8 6 10 9 . 9 9 1 3 4 Fast Attach 69 | 6 1 6 1 4 . 7 13 1 6 2 . 2 20 Attach 58 | . . 2 1 2 5 1 14 1 7 10 6 3 6 Detach 9 | . . . . 1 . . 1 . 1 . 3 . 3 Swap 15 | . . 1 2 1 1 4 4 . . . 2 . . Drop 82 | . 1 8 2 10 5 18 5 . 4 2 11 3 13 Fire 209 | . 11 30 13 34 . 12 74 . 10 . 9 6 10 Melee . | . . . . . . . . . . . . . . Ram 1 | . . . . . . . . . . . 1 . . Kick . | . . . . . . . . . . . . . . Crush . | . . . . . . . . . . . . . . Escape Stasis . | . . . . . . . . . . . . . . Rewire . | . . . . . . . . . . . . . . Trap . | . . . . . . . . . . . . . . Miscellaneous . | . . . . . . . . . . . . . . Route ------- -11/Scrapyard -10/Materials (discovered 3 exits: *Mat / Min x2) -9/Materials -9/Mines -8/Materials -7/Factory -7/DSF -6/Factory -5/Factory -5/DSF -4/Factory -4/Upper Caves -4/Upper Caves (discovered 2 exits: [*Res] / *War) -4/Warlord (discovered 1 exit: [*Pro]) History --------- Turn | Location | Event 23 | -11/Scrapyard | Discovered new exit (range 16) 41 | -11/Scrapyard | Entered Materials 46 | -10/Materials | Identified exit to Mines 207 | -10/Materials | Discovered new exit (range 3) 230 | -10/Materials | Entered another Materials area 230 | -9/Materials | Evolved 2 slots: Utility x2 300 | -9/Materials | Build established: Mutant 319 | -9/Materials | Discovered new exit (range 13) 488 | -9/Materials | Entered Mines 534 | -9/Mines | Learned Materials machine intel 555 | -9/Mines | Discovered new exit (range 14) 592 | -9/Mines | Found a damaged Exp. Sensor Array with a note attached 594 | -9/Mines | Found Prototype Device 646 | -9/Mines | Found the Drone Emporium 658 | -9/Mines | Found Prototype Device 658 | -9/Mines | Identified Thief Drone Bay 659 | -9/Mines | Identified Exp. Sensor Array 704 | -9/Mines | Entered Materials 704 | -8/Materials | Evolved 2 slots: Utility x1, Weapon x1 705 | -8/Materials | Loaded intel: 66 machine locations 1020 | -8/Materials | Build established: Tank 1140 | -8/Materials | Discovered new exit (range 5) 1144 | -8/Materials | Entered Factory 1144 | -7/Factory | Evolved 2 slots: Propulsion x1, Utility x1 1376 | -7/Factory | Identified exit to DSF 1377 | -7/Factory | Entered DSF 1416 | -7/DSF | Additional patrols routed to DSF 1641 | -7/DSF | Discovered new exit (range 16) 1704 | -7/DSF | Entered Factory 1704 | -6/Factory | Evolved 2 slots: Utility x2 1946 | -6/Factory | Lost 3 parts (3u) 2260 | -6/Factory | Build established: Gunner 2366 | -6/Factory | Lost 5 parts (2n2u1w) 2479 | -6/Factory | Discovered new exit (range 9) 2517 | -6/Factory | Core integrity fell below 50% 2573 | -6/Factory | Lost 10 parts (1p2n3u4w) 2628 | -6/Factory | Identified exit to Factory 2641 | -6/Factory | Entered another Factory area 2641 | -5/Factory | Evolved 2 slots: Propulsion x1, Utility x1 2731 | -5/Factory | Identified exit to DSF 2835 | -5/Factory | Entered DSF 2857 | -5/DSF | Additional patrols routed to DSF 2994 | -5/DSF | Lost 6 parts (4u2w) 3069 | -5/DSF | Discovered new exit (range 14) 3071 | -5/DSF | Core integrity fell below 50% 3085 | -5/DSF | Entered Factory 3085 | -4/Factory | Evolved 2 slots: Power x1, Weapon x1 3109 | -4/Factory | Lost 9 parts (2p5n2w) 3327 | -4/Factory | Discovered new exit (range 18) 3410 | -4/Factory | Identified exit to Upper Caves 3412 | -4/Factory | Entered Upper Caves 3558 | -4/Upper Caves | Attracted the attention of an 0b10 outpost 3598 | -4/Upper Caves | System corruption reached 10% 3636 | -4/Upper Caves | Lost 8 parts (2p6u) 3720 | -4/Upper Caves | Discovered new exit (range 12) 3721 | -4/Upper Caves | Learned location of Armory (-3) 3725 | -4/Upper Caves | Entered another Upper Caves area 3727 | -4/Upper Caves | Attracted the attention of an 0b10 checkpoint 3731 | -4/Upper Caves | Discovered new exit (range 15) 3745 | -4/Upper Caves | Learned Research trap positions 3766 | -4/Upper Caves | Spotted B-86 Titan 3881 | -4/Upper Caves | Build established: Mutant 3897 | -4/Upper Caves | Discovered new exit (range 7) 3900 | -4/Upper Caves | Entered Warlord 3919 | -4/Warlord | System corruption cleaned by Quarantine Array 4156 | -4/Warlord | Received a Watcher feed algorithm from an ecstatic Tinkerer 4376 | -4/Warlord | Found Prototype Special Weapon 4376 | -4/Warlord | Identified RU-N14's Throwing Claymores v3 4380 | -4/Warlord | Found RU-N14's Throwing Claymores v3 4384 | -4/Warlord | Found RU-N14's Throwing Claymores v3 4390 | -4/Warlord | Found RU-N14's Throwing Claymores v3 4394 | -4/Warlord | Found RU-N14's Throwing Claymores v3 4401 | -4/Warlord | Found RU-N14's Throwing Claymores v3 4447 | -4/Warlord | Warlord's base attacked by MAIN.C 4474 | -4/Warlord | Met Warlord 4524 | -4/Warlord | Found Prototype Device 4524 | -4/Warlord | Identified Thermal Barrier 4527 | -4/Warlord | Found Prototype Processor 4527 | -4/Warlord | Identified Exp. Core Analyzer 4546 | -4/Warlord | Found Prototype Reactor 4546 | -4/Warlord | Identified Vortex Chain Reactor 4686 | -4/Warlord | Learned location of Testing (-3) 4686 | -4/Warlord | Learned location of Command (-1) 4686 | -4/Warlord | Learned Armory emergency access door positions 4686 | -4/Warlord | Learned Research emergency access door positions 4797 | -4/Warlord | Warlord forces counterattacked 5019 | -4/Warlord | Spotted Executioner 5020 | -4/Warlord | Spotted Executioner 5057 | -4/Warlord | Spotted Executioner 5064 | -4/Warlord | Spotted Executioner 5088 | -4/Warlord | Core integrity fell below 50% 5106 | -4/Warlord | Lost 3 parts (2u1w) 5122 | -4/Warlord | Warlord base infiltrated, sounded retreat 5135 | -4/Warlord | Spotted Striker 5148 | -4/Warlord | Core integrity fell below 20% 5171 | -4/Warlord | Destroyed Striker 5183 | -4/Warlord | Discovered new exit (range 10) 5184 | -4/Warlord | Destroyed by G-67 Veteran with Plasma Rifle Last Messages --------------- 05125_ The unstable cave ceiling collapses. 05125_ Slug penetrates D-63 Destroyer. 05125_ D-63 Destroyer destroyed. 05125_ Slug penetrates Door. 05136_ Knocked back. 05137_ ANNOUNCEMENT: MAIN.C reinforcements approaching through caves, arriving soon. 05137_ Striker Prototype Protection severed. 05137_ Destroyed Adv. Particle Charger. 05138_ RU-N14's Throwing Claymores v3 destroyed. 05139_ Dropped Adv. Cooling System. 05140_ Dropped RU-N14's Throwing Claymores v3. 05147_ ANNOUNCEMENT: Detected 1 Mixed squad, 1 Hunter squad, 1 Grunt squad, 1 Saboteur squad, with prototype support. 05158_ The unstable cave ceiling collapses. 05167_ Connecting with WAR.Sys... 05171_ Striker triggered Dirty Bomb Trap. 05171_ An explosion rips through the floor. 05171_ Striker destroyed. 05183_ EXIT=FOUND Map ----- +----------------------------------------------------+ | | | | | | | | | ??????????????????????????????????? | | ??????????????????????????????????? | | ???######?????????????????????????? | | ?### ##???????????????????????? | | ##X#""""""######??????????????????? | | % #??????????????????? | | #??????????????????? | | ####""""""### #??????????????????? | | ???### # ##?# #??????????????????? | | ?????####???# #??????????????????? | | ????????????# #??????????????????? | | #???????????# #??????????????????? | | #??????????## ##?????????####????? | | #?????????## #???????## ###??? | | #?????????# #??????## #### | | #?????????# ##?????## < < | | #?????????# #?????? % ? | | #?????????# ##????? ;#?? | | #?????????## #?????? !%;##?? | | #??????????### ##????? %%*; #?? | | #????????????## #?##### % =;;#??? | | #?????????????## ### ##;@= ;; #??? | | ???????????????# #";; gg ###???? | | ???????????????# %g ##??? | | ???????????????## # %b ## "#? | | ????????????????## lgg " #? | | ?????????????????## %% "! #? | | "?????????????????## %% [%= ##? | | "#?????????????????#; m = ; ? | | "#?????????????????## ! ;# | | "#####??????????????#; % #"*% ;# | | " "############???# % #" "" | | " """"""""""""#???## % %"" # | | " """"""""""""#?#### ## ##### | | ### ### ##??? | | + ## #??? | | + #### #??? | | #### ##??# #??? | | " """"""""""""#??## #???# ##?? | | " """"""""""""#???# #?### #?? | | " "############???# #### # ^#?? | | "#####??????????????# #?# #?? | | "#?????????????????? ### #?? | | "#????????????????? ### ##?? | | "???????????#?????? ##?# #??? | | ??????????????????? ???## ##??? | +----------------------------------------------------+ Best States ------------- Heat Dissipation 88 Coolant Potential 50 Energy Generation 55 Energy Capacity 700 Matter Stores 300 Matter Capacity 300 Sight Range 16 Robot Scan Range 20 Terrain Scan Range 24 Terrain Scan Density 210 Armor Coverage 600 Core Shielding 20 Evasion (%) 50 Targeting Accuracy 24 Target Analysis 5 Core Analysis 8 Recoil Reduction 4 Particle Charging 25 Kinecelleration 30 Salvage Targeting 12 Authchip Count 2 Item Schematics ----------------- None Robot Schematics ------------------ None Fabricated ------------ Nothing Alien Tech Used ----------------- None Achievements -------------- None Challenges ------------ None Game ------ Seed ArchitectShieldRail Manual? 0 Play Time 00:59:45 Cumulative 210.9 hours Start 2022.03.25 @ 14:40:17 End 2022.03.25 @ 17:49:46 Sessions 5 Manual Loads 0 Difficulty Rogue Special Mode None Game No. 263 Rogue 263 Adventurer 0 Explorer 0 Win Type - Total 11 Types 3/3/0/1/1/3/0/0/0 Lore% 88 Gallery% 86 Achievement% 73 Wizard Run 0 Options --------- ASCII 0 Keyboard 0 Movement Mouse Keybinds 0 Fullscreen 2 Font 24/Smallcaps Map View 76x50 Tactical HUD 1 Map Filters NONE Filters NONE Steam 1 RUN: bbc8ab65-0123-45f0-88ba-9612fad004ff